[Event "Titled Tuesday Blitz August 31 2021"]
[White "Schmidt, Harald"]
[Black "Palchuk, Andrii"]
[WhiteFideId "4648358"]
[BlackFideId "14176688"]
[WhiteElo "2325"]
[BlackElo "2320"]
[Result "0-1"]
[Round "11"]
[TimeControl "180+1"]
[Date "2021.08.31"]
[WhiteClock "0:00:01"]
[BlackClock "0:00:33"]

1. e4 {[%clk 0:02:57]}  d5 {[%clk 0:02:59]} 2. exd5 {[%clk 0:02:56]}  Nf6 {[%clk 0:03:00]} 3. Nc3 {[%clk 0:02:51]}  Nxd5 {[%clk 0:02:57]} 4. g3 {[%clk 0:02:50]}  Nxc3 {[%clk 0:02:53]} 5. bxc3 {[%clk 0:02:49]}  c5 {[%clk 0:02:52]} 6. Bg2 {[%clk 0:02:48]}  g6 {[%clk 0:02:52]} 7. Rb1 {[%clk 0:02:41]}  Nc6 {[%clk 0:02:43]} 8. Ne2 {[%clk 0:02:01]}  Bg7 {[%clk 0:02:41]} 9. O-O {[%clk 0:02:01]}  O-O {[%clk 0:02:41]} 10. Re1 {[%clk 0:01:57]}  Qc7 {[%clk 0:02:39]} 11. Nf4 {[%clk 0:01:54]}  e6 {[%clk 0:02:37]} 12. h4 {[%clk 0:01:48]}  b6 {[%clk 0:02:35]} 13. h5 {[%clk 0:01:45]}  Bb7 {[%clk 0:02:35]} 14. hxg6 {[%clk 0:01:44]}  hxg6 {[%clk 0:02:36]} 15. Qe2 {[%clk 0:01:19]}  Rfd8 {[%clk 0:02:25]} 16. Nxe6 {[%clk 0:00:42]}  fxe6 {[%clk 0:02:21]} 17. Qxe6+ {[%clk 0:00:41]}  Kh7 {[%clk 0:02:08]} 18. Qh3+ {[%clk 0:00:30]}  Kg8 {[%clk 0:01:18]} 19. Qe6+ {[%clk 0:00:29]}  Kf8 {[%clk 0:01:16]} 20. Qxg6 {[%clk 0:00:29]}  Ne5 {[%clk 0:01:15]} 21. Qf5+ {[%clk 0:00:28]}  Nf7 {[%clk 0:01:11]} 22. d4 {[%clk 0:00:20]}  Bxg2 {[%clk 0:01:09]} 23. Kxg2 {[%clk 0:00:19]}  cxd4 {[%clk 0:01:09]} 24. Ba3+ {[%clk 0:00:14]}  Kg8 {[%clk 0:01:08]} 25. Re7 {[%clk 0:00:13]}  Qc4 {[%clk 0:01:05]} 26. Rbe1 {[%clk 0:00:06]}  dxc3 {[%clk 0:01:00]} 27. Kg1 {[%clk 0:00:01]}  Rf8 {[%clk 0:00:33]} 0-1


[Site "https://www.chess.com"]

[Event "Titled Tuesday Blitz August 31 2021"]
[White "Solon, Nathan"]
[Black "Perez Gormaz, Matias"]
[WhiteFideId "2017229"]
[BlackFideId "3406342"]
[WhiteElo "2667"]
[BlackElo "2352"]
[Result "1-0"]
[Round "11"]
[TimeControl "180+1"]
[Date "2021.08.31"]
[WhiteClock "0:02:07"]
[BlackClock "0:01:24"]

1. d4 {[%clk 0:03:00]}  d5 {[%clk 0:02:57]} 2. c4 {[%clk 0:03:00]}  e6 {[%clk 0:02:58]} 3. Nf3 {[%clk 0:03:00]}  Nf6 {[%clk 0:02:58]} 4. g3 {[%clk 0:03:01]}  dxc4 {[%clk 0:02:58]} 5. Bg2 {[%clk 0:03:01]}  a6 {[%clk 0:02:59]} 6. O-O {[%clk 0:03:00]}  b5 {[%clk 0:03:00]} 7. Ne5 {[%clk 0:03:00]}  Nd5 {[%clk 0:02:59]} 8. a4 {[%clk 0:02:52]}  Bb7 {[%clk 0:02:59]} 9. axb5 {[%clk 0:02:52]}  axb5 {[%clk 0:02:59]} 10. Rxa8 {[%clk 0:02:52]}  Bxa8 {[%clk 0:03:00]} 11. e4 {[%clk 0:02:52]}  Nf6 {[%clk 0:02:59]} 12. Nc3 {[%clk 0:02:52]}  c6 {[%clk 0:02:52]} 13. d5 {[%clk 0:02:51]}  cxd5 {[%clk 0:02:37]} 14. exd5 {[%clk 0:02:48]}  exd5 {[%clk 0:02:27]} 15. Ng4 {[%clk 0:02:41]}  Nbd7 {[%clk 0:02:08]} 16. Nxd5 {[%clk 0:02:30]}  Bxd5 {[%clk 0:01:56]} 17. Bxd5 {[%clk 0:02:31]}  Be7 {[%clk 0:01:56]} 18. Nxf6+ {[%clk 0:02:21]}  Bxf6 {[%clk 0:01:50]} 19. Bc6 {[%clk 0:02:15]}  b4 {[%clk 0:01:29]} 20. Re1+ {[%clk 0:02:14]}  Be7 {[%clk 0:01:24]} 21. Bf4 {[%clk 0:02:07]} 1-0


[Site "https://www.chess.com"]

[Event "Titled Tuesday Blitz August 31 2021"]
[White "Srihari L R"]
[Black "Semcesen, Daniel"]
[WhiteFideId "46617116"]
[BlackFideId "1706993"]
[WhiteElo "2121"]
[BlackElo "2505"]
[Result "1-0"]
[Round "11"]
[TimeControl "180+1"]
[Date "2021.08.31"]
[WhiteClock "0:01:41"]
[BlackClock "0:00:00"]

1. Nf3 {[%clk 0:03:00]}  Nf6 {[%clk 0:02:58]} 2. c4 {[%clk 0:03:00]}  e6 {[%clk 0:02:56]} 3. b3 {[%clk 0:03:00]}  b6 {[%clk 0:02:54]} 4. Bb2 {[%clk 0:03:00]}  Bb7 {[%clk 0:02:54]} 5. g3 {[%clk 0:03:00]}  g6 {[%clk 0:02:53]} 6. Bg2 {[%clk 0:03:00]}  Bg7 {[%clk 0:02:52]} 7. O-O {[%clk 0:02:59]}  O-O {[%clk 0:02:51]} 8. Nc3 {[%clk 0:02:59]}  d6 {[%clk 0:02:42]} 9. d4 {[%clk 0:02:56]}  Ne4 {[%clk 0:02:41]} 10. Qc2 {[%clk 0:02:56]}  Nxc3 {[%clk 0:02:38]} 11. Bxc3 {[%clk 0:02:57]}  c5 {[%clk 0:02:35]} 12. Rfd1 {[%clk 0:02:50]}  cxd4 {[%clk 0:02:24]} 13. Bxd4 {[%clk 0:02:49]}  Qe7 {[%clk 0:02:12]} 14. Bxg7 {[%clk 0:02:48]}  Kxg7 {[%clk 0:02:12]} 15. Qc3+ {[%clk 0:02:47]}  Kg8 {[%clk 0:02:11]} 16. Rd2 {[%clk 0:02:45]}  Nc6 {[%clk 0:02:05]} 17. Rad1 {[%clk 0:02:45]}  Rfd8 {[%clk 0:02:06]} 18. h4 {[%clk 0:02:39]}  h5 {[%clk 0:01:53]} 19. Ng5 {[%clk 0:02:36]}  Na5 {[%clk 0:01:32]} 20. Bxb7 {[%clk 0:02:30]}  Nxb7 {[%clk 0:01:31]} 21. Ne4 {[%clk 0:02:30]}  e5 {[%clk 0:01:23]} 22. Qf3 {[%clk 0:02:17]}  Kg7 {[%clk 0:01:01]} 23. Nc3 {[%clk 0:02:03]}  Rac8 {[%clk 0:00:41]} 24. Nd5 {[%clk 0:02:00]}  Qe6 {[%clk 0:00:38]} 25. Nxb6 {[%clk 0:01:55]}  axb6 {[%clk 0:00:38]} 26. Qxb7 {[%clk 0:01:53]}  Rb8 {[%clk 0:00:22]} 27. Qc6 {[%clk 0:01:52]}  e4 {[%clk 0:00:10]} 28. Rxd6 {[%clk 0:01:50]}  Rxd6 {[%clk 0:00:10]} 29. Rxd6 {[%clk 0:01:49]}  Qe5 {[%clk 0:00:07]} 30. Qc7 {[%clk 0:01:49]}  Qa1+ {[%clk 0:00:04]} 31. Kg2 {[%clk 0:01:48]}  Rf8 {[%clk 0:00:03]} 32. Qxb6 {[%clk 0:01:47]}  Qxa2 {[%clk 0:00:02]} 33. Qd4+ {[%clk 0:01:47]}  Kg8 {[%clk 0:00:02]} 34. Qxe4 {[%clk 0:01:44]}  Qxb3 {[%clk 0:00:02]} 35. c5 {[%clk 0:01:45]}  Qc3 {[%clk 0:00:01]} 36. c6 {[%clk 0:01:45]}  Rc8 {[%clk 0:00:00]} 37. Qd5 {[%clk 0:01:41]} 1-0


[Site "https://www.chess.com"]

[Event "Titled Tuesday Blitz August 31 2021"]
[White "Starozhilov, Leonid"]
[Black "Sengupta, Deep"]
[WhiteFideId "14106752"]
[BlackFideId "5008352"]
[WhiteElo "2414"]
[BlackElo "2347"]
[Result "1-0"]
[Round "11"]
[TimeControl "180+1"]
[Date "2021.08.31"]
[WhiteClock "0:00:38"]
[BlackClock "0:00:09"]

1. e4 {[%clk 0:02:55]}  b6 {[%clk 0:02:59]} 2. d3 {[%clk 0:02:53]}  Bb7 {[%clk 0:03:00]} 3. Nd2 {[%clk 0:02:54]}  e6 {[%clk 0:03:00]} 4. g3 {[%clk 0:02:52]}  d5 {[%clk 0:03:00]} 5. Bg2 {[%clk 0:02:52]}  Nf6 {[%clk 0:03:00]} 6. Ngf3 {[%clk 0:02:53]}  Be7 {[%clk 0:02:55]} 7. O-O {[%clk 0:02:51]}  O-O {[%clk 0:02:55]} 8. e5 {[%clk 0:02:50]}  Nfd7 {[%clk 0:02:55]} 9. Re1 {[%clk 0:02:49]}  c5 {[%clk 0:02:55]} 10. Nf1 {[%clk 0:02:49]}  Nc6 {[%clk 0:02:55]} 11. h4 {[%clk 0:02:48]}  Qc7 {[%clk 0:02:50]} 12. Bf4 {[%clk 0:02:47]}  Nd4 {[%clk 0:02:43]} 13. Nxd4 {[%clk 0:02:35]}  cxd4 {[%clk 0:02:43]} 14. Nh2 {[%clk 0:02:36]}  Rac8 {[%clk 0:02:42]} 15. Rc1 {[%clk 0:02:35]}  Bb4 {[%clk 0:02:21]} 16. Re2 {[%clk 0:02:05]}  Qd8 {[%clk 0:01:58]} 17. a3 {[%clk 0:02:05]}  Be7 {[%clk 0:01:56]} 18. Re1 {[%clk 0:02:05]}  a5 {[%clk 0:01:42]} 19. Qg4 {[%clk 0:01:58]}  Kh8 {[%clk 0:01:42]} 20. Nf3 {[%clk 0:01:54]}  Bc5 {[%clk 0:01:26]} 21. Qh5 {[%clk 0:01:34]}  f6 {[%clk 0:01:18]} 22. exf6 {[%clk 0:01:25]}  Nxf6 {[%clk 0:01:17]} 23. Qe5 {[%clk 0:01:21]}  Rc6 {[%clk 0:00:51]} 24. Nxd4 {[%clk 0:01:15]}  Ng4 {[%clk 0:00:49]} 25. Nxc6 {[%clk 0:01:02]}  Bxc6 {[%clk 0:00:48]} 26. Qxe6 {[%clk 0:01:02]}  Bxf2+ {[%clk 0:00:47]} 27. Kh1 {[%clk 0:01:02]}  Rxf4 {[%clk 0:00:31]} 28. Qxc6 {[%clk 0:01:02]}  Ne3 {[%clk 0:00:18]} 29. Bh3 {[%clk 0:00:45]}  Rxh4 {[%clk 0:00:16]} 30. gxh4 {[%clk 0:00:42]}  h5 {[%clk 0:00:09]} 31. Rxe3 {[%clk 0:00:40]}  Bxe3 {[%clk 0:00:09]} 32. Re1 {[%clk 0:00:38]}  d4 {[%clk 0:00:09]} 33. Qc8 {[%clk 0:00:38]} 1-0


[Site "https://www.chess.com"]

[Event "Titled Tuesday Blitz August 31 2021"]
[White "Tanenbaum, Zachary"]
[Black "Seemann, Jakub"]
[WhiteFideId "2060850"]
[BlackFideId "21874697"]
[WhiteElo "2165"]
[BlackElo "1805"]
[Result "0-1"]
[Round "11"]
[TimeControl "180+1"]
[Date "2021.08.31"]
[WhiteClock "0:00:01"]
[BlackClock "0:00:14"]

1. e4 {[%clk 0:03:00]}  c5 {[%clk 0:02:57]} 2. Nf3 {[%clk 0:03:00]}  d6 {[%clk 0:02:55]} 3. d4 {[%clk 0:03:00]}  cxd4 {[%clk 0:02:56]} 4. Nxd4 {[%clk 0:03:01]}  Nf6 {[%clk 0:02:56]} 5. Nc3 {[%clk 0:03:01]}  a6 {[%clk 0:02:57]} 6. Be3 {[%clk 0:03:01]}  e5 {[%clk 0:02:56]} 7. Nb3 {[%clk 0:03:01]}  Be7 {[%clk 0:02:57]} 8. h3 {[%clk 0:03:01]}  Be6 {[%clk 0:02:53]} 9. f4 {[%clk 0:03:01]}  Nc6 {[%clk 0:02:51]} 10. Qe2 {[%clk 0:02:57]}  Bxb3 {[%clk 0:02:33]} 11. axb3 {[%clk 0:02:55]}  Nb4 {[%clk 0:02:22]} 12. g4 {[%clk 0:02:48]}  Rc8 {[%clk 0:02:17]} 13. Bg2 {[%clk 0:02:45]}  exf4 {[%clk 0:02:12]} 14. Bxf4 {[%clk 0:02:45]}  Nd7 {[%clk 0:02:12]} 15. Qd2 {[%clk 0:02:43]}  O-O {[%clk 0:02:08]} 16. O-O {[%clk 0:02:26]}  Ne5 {[%clk 0:02:06]} 17. g5 {[%clk 0:02:14]}  f6 {[%clk 0:01:50]} 18. h4 {[%clk 0:02:02]}  fxg5 {[%clk 0:01:48]} 19. hxg5 {[%clk 0:02:01]}  Rxf4 {[%clk 0:01:48]} 20. Qxf4 {[%clk 0:01:57]}  Nxc2 {[%clk 0:01:48]} 21. Bh3 {[%clk 0:01:47]}  Bxg5 {[%clk 0:01:44]} 22. Be6+ {[%clk 0:01:45]}  Kh8 {[%clk 0:01:44]} 23. Qg3 {[%clk 0:01:15]}  Rb8 {[%clk 0:01:37]} 24. Nd5 {[%clk 0:01:00]}  Nd4 {[%clk 0:01:34]} 25. Qg2 {[%clk 0:00:57]}  Nxb3 {[%clk 0:01:23]} 26. Qh3 {[%clk 0:00:45]}  Nd4 {[%clk 0:01:19]} 27. Ra3 {[%clk 0:00:34]}  Qe8 {[%clk 0:01:04]} 28. Bf5 {[%clk 0:00:13]}  g6 {[%clk 0:01:02]} 29. Qg3 {[%clk 0:00:08]}  Bh6 {[%clk 0:00:51]} 30. Bh3 {[%clk 0:00:08]}  Ne2+ {[%clk 0:00:48]} 31. Kh2 {[%clk 0:00:07]}  Nxg3 {[%clk 0:00:49]} 32. Rxg3 {[%clk 0:00:07]}  Bg7 {[%clk 0:00:41]} 33. Rc3 {[%clk 0:00:06]}  Qb5 {[%clk 0:00:38]} 34. Rf2 {[%clk 0:00:05]}  h5 {[%clk 0:00:29]} 35. Rc7 {[%clk 0:00:05]}  Rg8 {[%clk 0:00:27]} 36. Be6 {[%clk 0:00:04]}  Re8 {[%clk 0:00:23]} 37. Bh3 {[%clk 0:00:04]}  Qd3 {[%clk 0:00:19]} 38. Nf4 {[%clk 0:00:01]}  Qxe4 {[%clk 0:00:18]} 39. Ne6 {[%clk 0:00:01]}  Rxe6 {[%clk 0:00:16]} 40. Bxe6 {[%clk 0:00:01]}  Nf3+ {[%clk 0:00:16]} 41. Kg3 {[%clk 0:00:01]}  Be5+ {[%clk 0:00:16]} 42. Kg2 {[%clk 0:00:01]}  Ng5+ {[%clk 0:00:14]} 0-1


[Site "https://www.chess.com"]

[Event "Titled Tuesday Blitz August 31 2021"]
[White "Timmermans, Mark"]
[Black "Alavkin, Arseny"]
[WhiteFideId "1026399"]
[BlackFideId "4120612"]
[WhiteElo "2460"]
[BlackElo "2391"]
[Result "1-0"]
[Round "11"]
[TimeControl "180+1"]
[Date "2021.08.31"]
[WhiteClock "0:01:42"]
[BlackClock "0:02:05"]

1. b4 {[%clk 0:03:00]}  e5 {[%clk 0:02:58]} 2. Bb2 {[%clk 0:03:01]}  Bxb4 {[%clk 0:02:59]} 3. Bxe5 {[%clk 0:03:01]}  Nf6 {[%clk 0:03:00]} 4. Nc3 {[%clk 0:03:01]}  O-O {[%clk 0:03:00]} 5. Bxf6 {[%clk 0:03:01]}  Qxf6 {[%clk 0:02:58]} 6. Nd5 {[%clk 0:03:02]}  Qd6 {[%clk 0:02:58]} 7. c4 {[%clk 0:03:02]}  c6 {[%clk 0:02:58]} 8. Nxb4 {[%clk 0:03:02]}  Qxb4 {[%clk 0:02:59]} 9. e3 {[%clk 0:03:02]}  Re8 {[%clk 0:02:59]} 10. Nf3 {[%clk 0:03:03]}  d6 {[%clk 0:02:56]} 11. Rb1 {[%clk 0:03:03]}  Qa5 {[%clk 0:02:56]} 12. Bd3 {[%clk 0:03:03]}  Qa3 {[%clk 0:02:56]} 13. Rb3 {[%clk 0:03:02]}  Qxa2 {[%clk 0:02:56]} 14. O-O {[%clk 0:03:03]}  h6 {[%clk 0:02:56]} 15. Bb1 {[%clk 0:02:57]}  Qa5 {[%clk 0:02:54]} 16. Qc2 {[%clk 0:02:54]}  g6 {[%clk 0:02:54]} 17. Qb2 {[%clk 0:02:53]}  Qd8 {[%clk 0:02:47]} 18. d4 {[%clk 0:02:50]}  b6 {[%clk 0:02:47]} 19. d5 {[%clk 0:02:50]}  c5 {[%clk 0:02:45]} 20. Bd3 {[%clk 0:02:45]}  Nd7 {[%clk 0:02:46]} 21. Ra1 {[%clk 0:02:44]}  Bb7 {[%clk 0:02:45]} 22. h3 {[%clk 0:02:42]}  Qf6 {[%clk 0:02:45]} 23. Qb1 {[%clk 0:02:37]}  a5 {[%clk 0:02:37]} 24. Nd2 {[%clk 0:02:21]}  Kg7 {[%clk 0:02:34]} 25. Ne4 {[%clk 0:02:18]}  Qe7 {[%clk 0:02:35]} 26. Qb2+ {[%clk 0:02:15]}  f6 {[%clk 0:02:32]} 27. Nc3 {[%clk 0:02:14]}  Ba6 {[%clk 0:02:31]} 28. Na4 {[%clk 0:02:14]}  Ne5 {[%clk 0:02:16]} 29. Nxb6 {[%clk 0:02:04]}  Rab8 {[%clk 0:02:12]} 30. Bf1 {[%clk 0:01:59]}  Bc8 {[%clk 0:02:09]} 31. Rxa5 {[%clk 0:01:56]}  Nf7 {[%clk 0:02:07]} 32. Qa1 {[%clk 0:01:46]}  Rd8 {[%clk 0:02:06]} 33. Ra7 {[%clk 0:01:44]}  Rb7 {[%clk 0:02:06]} 34. Nxc8 {[%clk 0:01:42]}  Rxa7 {[%clk 0:02:05]} 35. Qxa7 {[%clk 0:01:42]} 1-0


[Site "https://www.chess.com"]

[Event "Titled Tuesday Blitz August 31 2021"]
[White "Urazayev, Arystanbek"]
[Black "Dobrowolski, Piotr"]
[WhiteFideId "13709810"]
[BlackFideId "1106236"]
[WhiteElo "2321"]
[BlackElo "2296"]
[Result "1-0"]
[Round "11"]
[TimeControl "180+1"]
[Date "2021.08.31"]
[WhiteClock "0:00:21"]
[BlackClock "0:00:04"]

1. e4 {[%clk 0:03:00]}  e6 {[%clk 0:02:59]} 2. b3 {[%clk 0:03:01]}  d5 {[%clk 0:02:59]} 3. Bb2 {[%clk 0:03:01]}  dxe4 {[%clk 0:02:57]} 4. Nc3 {[%clk 0:03:02]}  Nf6 {[%clk 0:02:57]} 5. Qe2 {[%clk 0:03:02]}  Nc6 {[%clk 0:02:51]} 6. Nxe4 {[%clk 0:03:02]}  Nd5 {[%clk 0:02:50]} 7. O-O-O {[%clk 0:03:01]}  a5 {[%clk 0:02:50]} 8. a4 {[%clk 0:03:01]}  Ndb4 {[%clk 0:02:21]} 9. h4 {[%clk 0:02:55]}  b6 {[%clk 0:02:08]} 10. h5 {[%clk 0:02:52]}  h6 {[%clk 0:02:04]} 11. Qf3 {[%clk 0:02:45]}  Bb7 {[%clk 0:01:59]} 12. Bb5 {[%clk 0:02:45]}  Qd5 {[%clk 0:01:45]} 13. Ne2 {[%clk 0:02:44]}  f5 {[%clk 0:01:41]} 14. N4c3 {[%clk 0:02:06]}  Qxf3 {[%clk 0:01:40]} 15. gxf3 {[%clk 0:02:06]}  O-O-O {[%clk 0:01:38]} 16. Nf4 {[%clk 0:02:06]}  Nd4 {[%clk 0:01:33]} 17. Ng6 {[%clk 0:02:01]}  Rg8 {[%clk 0:01:27]} 18. Bc4 {[%clk 0:01:52]}  Bxf3 {[%clk 0:01:24]} 19. Rde1 {[%clk 0:01:45]}  Bxh1 {[%clk 0:01:24]} 20. Rxh1 {[%clk 0:01:46]}  Bc5 {[%clk 0:01:14]} 21. Nb5 {[%clk 0:01:46]}  Rge8 {[%clk 0:00:41]} 22. Nxd4 {[%clk 0:01:46]}  Bxd4 {[%clk 0:00:41]} 23. c3 {[%clk 0:01:47]}  Na2+ {[%clk 0:00:39]} 24. Kb1 {[%clk 0:01:38]}  Bxf2 {[%clk 0:00:39]} 25. d4 {[%clk 0:01:37]}  Nxc3+ {[%clk 0:00:38]} 26. Bxc3 {[%clk 0:01:38]}  Bxd4 {[%clk 0:00:39]} 27. Kc2 {[%clk 0:01:31]}  Bxc3 {[%clk 0:00:39]} 28. Kxc3 {[%clk 0:01:32]}  Rd6 {[%clk 0:00:32]} 29. Ne5 {[%clk 0:01:31]}  c6 {[%clk 0:00:29]} 30. Rg1 {[%clk 0:01:31]}  Re7 {[%clk 0:00:28]} 31. Rb1 {[%clk 0:00:58]}  b5 {[%clk 0:00:26]} 32. axb5 {[%clk 0:00:55]}  cxb5 {[%clk 0:00:27]} 33. Bxb5 {[%clk 0:00:55]}  Rd5 {[%clk 0:00:24]} 34. Nc4 {[%clk 0:00:53]}  Rc7 {[%clk 0:00:23]} 35. Be8 {[%clk 0:00:50]}  Kd8 {[%clk 0:00:21]} 36. Bg6 {[%clk 0:00:50]}  Ke7 {[%clk 0:00:22]} 37. Kb2 {[%clk 0:00:46]}  Rb5 {[%clk 0:00:20]} 38. Na3 {[%clk 0:00:39]}  Re5 {[%clk 0:00:20]} 39. Nc4 {[%clk 0:00:35]}  Re2+ {[%clk 0:00:20]} 40. Ka3 {[%clk 0:00:35]}  a4 {[%clk 0:00:20]} 41. Kxa4 {[%clk 0:00:34]}  Rb7 {[%clk 0:00:20]} 42. Ka3 {[%clk 0:00:34]}  Kf6 {[%clk 0:00:20]} 43. b4 {[%clk 0:00:30]}  e5 {[%clk 0:00:20]} 44. Na5 {[%clk 0:00:31]}  Rb8 {[%clk 0:00:19]} 45. b5 {[%clk 0:00:30]}  f4 {[%clk 0:00:20]} 46. b6 {[%clk 0:00:29]}  f3 {[%clk 0:00:20]} 47. Nc6 {[%clk 0:00:27]}  Ra8+ {[%clk 0:00:18]} 48. Kb4 {[%clk 0:00:28]}  f2 {[%clk 0:00:19]} 49. b7 {[%clk 0:00:28]}  Rf8 {[%clk 0:00:19]} 50. Bd3 {[%clk 0:00:25]}  Re1 {[%clk 0:00:18]} 51. Rb2 {[%clk 0:00:24]}  f1=Q {[%clk 0:00:16]} 52. Bxf1 {[%clk 0:00:25]}  Rxf1 {[%clk 0:00:16]} 53. b8=Q {[%clk 0:00:24]}  Rxb8+ {[%clk 0:00:16]} 54. Nxb8 {[%clk 0:00:25]}  Rh1 {[%clk 0:00:17]} 55. Kc5 {[%clk 0:00:22]}  Rxh5 {[%clk 0:00:17]} 56. Kd5 {[%clk 0:00:22]}  e4+ {[%clk 0:00:16]} 57. Kxe4 {[%clk 0:00:22]}  Re5+ {[%clk 0:00:17]} 58. Kd4 {[%clk 0:00:23]}  Re8 {[%clk 0:00:16]} 59. Nd7+ {[%clk 0:00:23]}  Kg5 {[%clk 0:00:16]} 60. Ne5 {[%clk 0:00:23]}  h5 {[%clk 0:00:15]} 61. Rg2+ {[%clk 0:00:22]}  Kh6 {[%clk 0:00:15]} 62. Ke4 {[%clk 0:00:20]}  g5 {[%clk 0:00:14]} 63. Kf5 {[%clk 0:00:19]}  Rf8+ {[%clk 0:00:15]} 64. Ke6 {[%clk 0:00:20]}  Rf1 {[%clk 0:00:15]} 65. Nf7+ {[%clk 0:00:19]}  Kg6 {[%clk 0:00:15]} 66. Rxg5+ {[%clk 0:00:20]}  Kh7 {[%clk 0:00:15]} 67. Ke7 {[%clk 0:00:20]}  h4 {[%clk 0:00:15]} 68. Kf8 {[%clk 0:00:20]}  Rxf7+ {[%clk 0:00:03]} 69. Kxf7 {[%clk 0:00:20]}  Kh6 {[%clk 0:00:04]} 70. Rb5 {[%clk 0:00:21]}  h3 {[%clk 0:00:04]} 71. Rb3 {[%clk 0:00:21]} 1-0


[Site "https://www.chess.com"]

[Event "Titled Tuesday Blitz August 31 2021"]
[White "Wagner, Dennis"]
[Black "Blomqvist, Erik"]
[WhiteFideId "24650684"]
[BlackFideId "1709437"]
[WhiteElo "2355"]
[BlackElo "2460"]
[Result "1/2-1/2"]
[Round "11"]
[TimeControl "180+1"]
[Date "2021.08.31"]
[WhiteClock "0:00:02"]
[BlackClock "0:00:09"]

1. e4 {[%clk 0:03:00]}  c5 {[%clk 0:02:56]} 2. c3 {[%clk 0:03:00]}  Nf6 {[%clk 0:02:55]} 3. e5 {[%clk 0:03:01]}  Nd5 {[%clk 0:02:56]} 4. Nf3 {[%clk 0:03:01]}  d6 {[%clk 0:02:56]} 5. Bc4 {[%clk 0:03:00]}  Nb6 {[%clk 0:02:54]} 6. Bb3 {[%clk 0:02:59]}  c4 {[%clk 0:02:45]} 7. Bc2 {[%clk 0:02:58]}  dxe5 {[%clk 0:02:43]} 8. Nxe5 {[%clk 0:02:56]}  Qd5 {[%clk 0:02:39]} 9. Qe2 {[%clk 0:02:32]}  e6 {[%clk 0:01:29]} 10. b3 {[%clk 0:02:14]}  Qxg2 {[%clk 0:01:14]} 11. Be4 {[%clk 0:02:13]}  Qh3 {[%clk 0:01:14]} 12. Na3 {[%clk 0:02:03]}  N8d7 {[%clk 0:01:10]} 13. Nexc4 {[%clk 0:01:53]}  Nc5 {[%clk 0:01:05]} 14. Nb5 {[%clk 0:01:44]}  Nxe4 {[%clk 0:00:56]} 15. Qxe4 {[%clk 0:01:42]}  Nd5 {[%clk 0:00:52]} 16. Nbd6+ {[%clk 0:01:25]}  Bxd6 {[%clk 0:00:47]} 17. Nxd6+ {[%clk 0:01:25]}  Kf8 {[%clk 0:00:44]} 18. Ba3 {[%clk 0:01:24]}  Kg8 {[%clk 0:00:42]} 19. O-O-O {[%clk 0:01:22]}  Bd7 {[%clk 0:00:40]} 20. Rhg1 {[%clk 0:01:20]}  Bc6 {[%clk 0:00:32]} 21. Qe5 {[%clk 0:00:32]}  f6 {[%clk 0:00:29]} 22. Rxg7+ {[%clk 0:00:15]}  Kxg7 {[%clk 0:00:28]} 23. Rg1+ {[%clk 0:00:14]}  Kf8 {[%clk 0:00:22]} 24. Ne4+ {[%clk 0:00:09]}  Kf7 {[%clk 0:00:14]} 25. Nd6+ {[%clk 0:00:06]}  Kf8 {[%clk 0:00:10]} 26. Nc4+ {[%clk 0:00:02]}  Kf7 {[%clk 0:00:09]} 27. Nd6+ {[%clk 0:00:02]}  Kf8 {[%clk 0:00:09]} 1/2-1/2


[Site "https://www.chess.com"]

[Event "Titled Tuesday Blitz August 31 2021"]
[White "Weetik, Vjacheslav"]
[Black "Korsunsky, Yuri"]
[WhiteFideId "4153472"]
[BlackFideId "14102722"]
[WhiteElo "2469"]
[BlackElo "2448"]
[Result "1-0"]
[Round "11"]
[TimeControl "180+1"]
[Date "2021.08.31"]
[WhiteClock "0:00:43"]
[BlackClock "0:00:09"]

1. b4 {[%clk 0:02:56]}  Nf6 {[%clk 0:02:53]} 2. Bb2 {[%clk 0:02:55]}  g6 {[%clk 0:02:53]} 3. g4 {[%clk 0:02:55]}  Bg7 {[%clk 0:02:49]} 4. g5 {[%clk 0:02:55]}  Nh5 {[%clk 0:02:50]} 5. d4 {[%clk 0:02:56]}  a5 {[%clk 0:02:47]} 6. b5 {[%clk 0:02:53]}  c5 {[%clk 0:02:46]} 7. e3 {[%clk 0:02:51]}  d5 {[%clk 0:02:32]} 8. Be2 {[%clk 0:02:49]}  cxd4 {[%clk 0:02:21]} 9. Bxd4 {[%clk 0:02:01]}  e5 {[%clk 0:02:20]} 10. Bb2 {[%clk 0:01:56]}  Qxg5 {[%clk 0:02:14]} 11. Qxd5 {[%clk 0:01:45]}  O-O {[%clk 0:02:13]} 12. Nf3 {[%clk 0:01:44]}  Qg2 {[%clk 0:01:52]} 13. Rg1 {[%clk 0:01:42]}  Qh3 {[%clk 0:01:45]} 14. Ng5 {[%clk 0:01:31]}  Qxh2 {[%clk 0:01:35]} 15. Rh1 {[%clk 0:01:29]}  Qxh1+ {[%clk 0:01:20]} 16. Qxh1 {[%clk 0:01:28]}  h6 {[%clk 0:01:06]} 17. Ne4 {[%clk 0:01:22]}  Be6 {[%clk 0:00:35]} 18. Bxh5 {[%clk 0:01:05]}  gxh5 {[%clk 0:00:35]} 19. Qxh5 {[%clk 0:01:05]}  Nd7 {[%clk 0:00:34]} 20. Nbd2 {[%clk 0:01:03]}  f5 {[%clk 0:00:27]} 21. Nd6 {[%clk 0:00:53]}  Nf6 {[%clk 0:00:19]} 22. Qg6 {[%clk 0:00:49]}  Rad8 {[%clk 0:00:17]} 23. Bxe5 {[%clk 0:00:44]}  Rxd6 {[%clk 0:00:09]} 24. Bxd6 {[%clk 0:00:43]} 1-0


[Site "https://www.chess.com"]